Workbook

Sheet 一季度
A1: 保山电力昌宁分公司2024年一季度配电网接入能力公示表
A2: 序号 | B2: 设备名称（准确、完整描述配变名称） | C2: 电压等级(kV) | D2: 季度平均负载率（%） | E2: 季度平均负载率（%） | F2: 最大负载率（%） | G2: 最大负载率（%） | H2: 负载情况（轻载、重载、过载） | I2: 可开放容量(kVA) | J2: 是否接入受限（是/否） | K2: 覆盖区域（以“县区-乡镇或街道办-村委会或社区-村或小区”的地址层级进行公示） | L2: 容量
A3: 1 | B3: 10kV达丙街线422回路达丙社区上达丙1#台变 | C3: 10kV | D3: 0.094 | E3: =D3*100 -> 9.4 | F3: 0.178 | G3: =F3*100 -> 17.8 | H3: =_xlfn.IFS(D3<30%,"轻载",80%<D3<100%,"重载",D3>100%,"过载") -> 轻载 | I3: =(L3-L3*D3)*0.9 -> 256.85 | J3: =IF(H3="过载","是","否") -> 否 | K3: 昌宁县田园镇达丙社区 | L3: 315
A4: 2 | B4: 10kV达丙街线422回路达丙社区姚寨1#台变 | C4: 10kV | D4: 0.2442 | E4: =D4*100 -> 24.42 | F4: 0.473 | G4: =F4*100 -> 47.3 | H4: 轻载 | I4: 214.27 | J4: =IF(H4="过载","是","否") -> 否 | K4: 昌宁县田园镇达丙社区 | L4: 315
A5: 3 | B5: 10kV达丙街线422回路达丙社区学堂1#台变 | C5: 10kV | D5: 0.1258 | E5: 12.58 | F5: 0.2047 | G5: 20.47 | H5: 轻载 | I5: 78.68 | J5: 否 | K5: 昌宁县田园镇达丙社区 | L5: 100
A6: 4 | B6: 10kV达丙街线422回路达丙社区麻栗树1#台变 | C6: 10kV | D6: 0.1244 | E6: 12.44 | F6: 0.248 | G6: 24.8 | H6: 轻载 | I6: 197.01 | J6: 否 | K6: 昌宁县田园镇达丙社区 | L6: 250
A7: 5 | B7: 10kV达丙街线422回路达丙社区小河边1#台变 | C7: 10kV | D7: 0.0909 | E7: 9.09 | F7: 0.2814 | G7: 28.14 | H7: 轻载 | I7: 163.64 | J7: 否 | K7: 昌宁县田园镇达丙社区 | L7: 200
A8: 6 | B8: 10kV达丙街线422回路达丙社区小河边2#台变 | C8: 10kV | D8: 0.0776 | E8: 7.76 | F8: 0.144 | G8: 14.4 | H8: 轻载 | I8: 166.03 | J8: 否 | K8: 昌宁县田园镇达丙社区 | L8: 200
A9: 7 | B9: 10kV达丙街线422回路达丙社区达丙街1#台变 | C9: 10kV | D9: 0.0956 | E9: 9.56 | F9: 0.186 | G9: 18.6 | H9: 轻载 | I9: 256.40 | J9: 否 | K9: 昌宁县田园镇达丙社区 | L9: 315
A10: 8 | B10: 10kV达丙街线422回路达丙社区茶厂路口台变 | C10: 10kV | D10: 0.1303 | E10: 13.03 | F10: 0.2648 | G10: 26.48 | H10: 轻载 | I10: 246.56 | J10: 否 | K10: 昌宁县田园镇达丙社区 | L10: 315
A11: 9 | B11: 10kV达丙街线422回路达丙社区打油寨台变 | C11: 10kV | D11: 0.0548 | E11: 5.48 | F11: 0.1164 | G11: 11.64 | H11: 轻载 | I11: 267.96 | J11: 否 | K11: 昌宁县田园镇达丙社区 | L11: 315
A12: 10 | B12: 10kV达丙街线422回路达丙社区苏家湾2#台变 | C12: 10kV | D12: 0.0869 | E12: 8.69 | F12: 0.149 | G12: 14.9 | H12: 轻载 | I12: 258.86 | J12: 否 | K12: 昌宁县田园镇达丙社区 | L12: 315
A13: 11 | B13: 10kV达丙街线422回路达丙社区达丙街2#台变 | C13: 10kV | D13: 0.0992 | E13: 9.92 | F13: 0.1553 | G13: 15.53 | H13: 轻载 | I13: 255.38 | J13: 否 | K13: 昌宁县田园镇达丙社区 | L13: 315
A14: 12 | B14: 10kV达丙街线422回路达丙社区达丙街4#台变 | C14: 10kV | D14: 0.1197 | E14: 11.97 | F14: 0.269 | G14: 26.9 | H14: 轻载 | I14: 316.91 | J14: 否 | K14: 昌宁县田园镇达丙社区 | L14: 400
A15: 13 | B15: 10kV达丙街线422回路达丙社区皂角树1#台变 | C15: 10kV | D15: 0.0764 | E15: 7.64 | F15: 0.1367 | G15: 13.67 | H15: 轻载 | I15: 261.84 | J15: 否 | K15: 昌宁县田园镇达丙社区 | L15: 315
A16: 14 | B16: 10kV达丙街线422回路达丙社区达丙街5#台变 | C16: 10kV | D16: 0.1311 | E16: 13.11 | F16: 0.2146 | G16: 21.46 | H16: 轻载 | I16: 246.33 | J16: 否 | K16: 昌宁县田园镇达丙社区 | L16: 315
A17: 15 | B17: 10kV达丙街线422回路达丙社区学堂2#台变 | C17: 10kV | D17: 0.0756 | E17: 7.56 | F17: 0.1576 | G17: 15.76 | H17: 轻载 | I17: 207.99 | J17: 否 | K17: 昌宁县田园镇达丙社区 | L17: 250
A18: 16 | B18: 10kV达丙街线422回路达丙社区麻栗树2#台变 | C18: 10kV | D18: 0.1042 | E18: 10.42 | F18: 0.2171 | G18: 21.71 | H18: 轻载 | I18: 161.24 | J18: 否 | K18: 昌宁县田园镇达丙社区 | L18: 200
A19: 17 | B19: 10kV达丙街线422回路达丙社区皂角树2#台变 | C19: 10kV | D19: 0.1902 | E19: 19.02 | F19: 0.3334 | G19: 33.34 | H19: 轻载 | I19: 182.21 | J19: 否 | K19: 昌宁县田园镇达丙社区 | L19: 250
A20: 18 | B20: 10kV达丙街线422回路达丙社区达丙街3#台变 | C20: 10kV | D20: 0.3067 | E20: 30.67 | F20: 0.5817 | G20: 58.17 | H20: 经济运行 | I20: 196.55 | J20: 否 | K20: 昌宁县田园镇达丙社区 | L20: 315
A21: 19 | B21: 10kV达丙街线422回路达丙社区恩红世纪城1#台变 | C21: 10kV | D21: 0.0369 | E21: 3.69 | F21: 0.0616 | G21: 6.16 | H21: =_xlfn.IFS(D21<30%,"轻载",80%<D21<100%,"重载",D21>100%,"过载") -> 轻载 | I21: 693.43 | J21: 否 | K21: 昌宁县田园镇达丙社区 | L21: 800
A22: 20 | B22: 10kV达丙街线422回路达丙社区恩红世纪城2#台变 | C22: 10kV | D22: 0.0303 | E22: 3.03 | F22: 0.0549 | G22: 5.49 | H22: 轻载 | I22: 698.18 | J22: 否 | K22: 昌宁县田园镇达丙社区 | L22: 800
A23: 21 | B23: 10kV达丙街线422回路达丙社区上达丙2#台变 | C23: 10kV | D23: 0.0775 | E23: 7.75 | F23: 0.1388 | G23: 13.88 | H23: 轻载 | I23: 207.56 | J23: 否 | K23: 昌宁县田园镇达丙社区 | L23: 250
A24: 22 | B24: 10kV达丙街线422回路达丙社区姚寨2#台变 | C24: 10kV | D24: 0.1675 | E24: 16.75 | F24: 0.4395 | G24: 43.95 | H24: 轻载 | I24: 149.85 | J24: 否 | K24: 昌宁县田园镇达丙社区 | L24: 200
A25: 23 | B25: 10kV达丙街线422回路达丙社区达丙安置区2#台变 | C25: 10kV | D25: 0.0614 | E25: 6.14 | F25: 0.149 | G25: 14.9 | H25: 轻载 | I25: 266.09 | J25: 否 | K25: 昌宁县田园镇达丙社区 | L25: 315
A26: 24 | B26: 10kV达丙街线422回路达丙社区达丙安置区1#台变 | C26: 10kV | D26: 0.1457 | E26: 14.57 | F26: 0.4091 | G26: 40.91 | H26: 轻载 | I26: 242.19 | J26: 否 | K26: 昌宁县田园镇达丙社区 | L26: 315
A27: 25 | B27: 10kV达丙街线422回路达丙社区苏家湾1#台变 | C27: 10kV | D27: 0.0878 | E27: 8.78 | F27: 0.1947 | G27: 19.47 | H27: 轻载 | I27: 258.61 | J27: 否 | K27: 昌宁县田园镇达丙社区 | L27: 315
A28: 26 | B28: 10kV达丙街线422回路达丙社区龚家队台变 | C28: 10kV | D28: 0.0555 | E28: 5.55 | F28: 0.1114 | G28: 11.14 | H28: 轻载 | I28: 267.77 | J28: 否 | K28: 昌宁县田园镇达丙社区 | L28: 315
A29: 27 | B29: 10kV达丙街线422回路达丙社区达丙街6#台变 | C29: 10kV | D29: 0.0625 | E29: 6.25 | F29: 0.1404 | G29: 14.04 | H29: 轻载 | I29: 210.94 | J29: 否 | K29: 昌宁县田园镇达丙社区 | L29: 250
A30: 28 | B30: 10kV达丙街线422回路达丙社区茶艺坊1#台变 | C30: 10kV | D30: 0.033 | E30: 3.3 | F30: 0.0663 | G30: 6.63 | H30: 轻载 | I30: 548.29 | J30: 否 | K30: 昌宁县田园镇达丙社区 | L30: 630
A31: 29 | B31: 10kV达丙街线422回路达丙社区茶艺坊2#台变 | C31: 10kV | D31: 0.0149 | E31: 1.49 | F31: 0.0344 | G31: 3.44 | H31: 轻载 | I31: 709.27 | J31: 否 | K31: 昌宁县田园镇达丙社区 | L31: 800
A32: 30 | B32: 10kV达丙街线422回路达丙社区茶艺坊3#台变 | C32: 10kV | D32: 0.0317 | E32: 3.17 | F32: 0.0541 | G32: 5.41 | H32: 轻载 | I32: 549.03 | J32: 否 | K32: 昌宁县田园镇达丙社区 | L32: 630
A33: 31 | B33: 10kV达丙街线422回路达丙社区小河边3#台变 | C33: 10kV | D33: 0.1276 | E33: 12.76 | F33: 0.2125 | G33: 21.25 | H33: 轻载 | I33: 157.03 | J33: 否 | K33: 昌宁县田园镇达丙社区 | L33: 200
A34: 32 | B34: 10kV达丙街线422回路达丙社区达丙安置区3#台变 | C34: 10kV | D34: 0.0411 | E34: 4.11 | F34: 0.1125 | G34: 11.25 | H34: 轻载 | I34: 543.70 | J34: 否 | K34: 昌宁县田园镇达丙社区 | L34: 630
A35: 33 | B35: 10kV达丙街线422回路达丙社区小河边4#台变 | C35: 10kV | D35: 0.07609803175 | E35: 7.61 | F35: 0.0761 | G35: 7.61 | H35: 轻载 | I35: 261.93 | J35: 否 | K35: 昌宁县田园镇达丙社区 | L35: 315
A36: 34 | B36: 10kV达丙街线422回路达丙社区达丙街7#台变 | C36: 10kV | D36: 0.0331 | E36: 3.31 | F36: 0.0626 | G36: 6.26 | H36: 轻载 | I36: 274.12 | J36: 否 | K36: 昌宁县田园镇达丙社区 | L36: 315
A37: 35 | B37: 10kV达丙街线422回路达丙社区福园小区台变 | C37: 10kV | D37: 0.13634304 | E37: 13.63 | F37: 0.2887 | G37: 28.87 | H37: 轻载 | I37: 194.32 | J37: 否 | K37: 昌宁县田园镇达丙社区 | L37: 250
A38: 36 | B38: 10kV达丙街线422回路达丙社区兴达小区台变 | C38: 10kV | D38: 0.0705 | E38: 7.05 | F38: 0.1364 | G38: 13.64 | H38: 轻载 | I38: 209.14 | J38: 否 | K38: 昌宁县田园镇达丙社区 | L38: 250
A39: 37 | B39: 10kV达丙街线422回路达丙社区恩红世纪城3#台变 | C39: 10kV | D39: 0.0258 | E39: 2.58 | F39: 0.0486 | G39: 4.86 | H39: 轻载 | I39: 701.42 | J39: 否 | K39: 昌宁县田园镇达丙社区 | L39: 800
A40: 38 | B40: 10kV达丙街线422回路达丙社区福惠路安置区台变 | C40: 10kV | D40: 0.0256 | E40: 2.56 | F40: 0.0624 | G40: 6.24 | H40: 轻载 | I40: 438.48 | J40: 否 | K40: 昌宁县田园镇达丙社区 | L40: 500
A41: 39 | B41: 10kV达丙街线422回路达丙社区茶韵小院台变 | C41: 10kV | D41: 0.0083 | E41: 1.81 | F41: 0.0212 | G41: 6.81 | H41: 轻载 | I41: 562.29 | J41: 否 | K41: 昌宁县漭水镇四角田社区 | L41: 630
A42: 40 | B42: 10kV水泥厂线423回路四角田社区小龙塘1#台变 | C42: 10kV | D42: 0.0815 | E42: 8.15 | F42: 0.1877 | G42: 18.77 | H42: 轻载 | I42: 82.67 | J42: 否 | K42: 昌宁县漭水镇四角田社区 | L42: 100
A43: 41 | B43: 10kV水泥厂线423回路四角田社区李子树台变 | C43: 10kV | D43: 0.0807 | E43: 8.07 | F43: 0.154 | G43: 15.4 | H43: 轻载 | I43: 82.74 | J43: 否 | K43: 昌宁县漭水镇四角田社区 | L43: 100
A44: 42 | B44: 10kV水泥厂线423回路四角田社区集镇台变 | C44: 10kV | D44: 0.0892 | E44: 8.92 | F44: 0.1747 | G44: 17.47 | H44: 轻载 | I44: 258.21 | J44: 否 | K44: 昌宁县漭水镇四角田社区 | L44: 315
A45: 43 | B45: 10kV水泥厂线423回路四角田社区尖山河台变 | C45: 10kV | D45: 0.1014 | E45: 10.14 | F45: 0.2092 | G45: 20.92 | H45: 轻载 | I45: 80.87 | J45: 否 | K45: 昌宁县漭水镇四角田社区 | L45: 100
A46: 44 | B46: 10kV水泥厂线423回路四角田社区四角田村台变 | C46: 10kV | D46: 0.0694 | E46: 6.94 | F46: 0.1856 | G46: 18.56 | H46: 轻载 | I46: 83.75 | J46: 否 | K46: 昌宁县漭水镇四角田社区 | L46: 100
A47: 45 | B47: 10kV水泥厂线423回路四角田社区杞木林台变 | C47: 10kV | D47: 0.0533 | E47: 5.33 | F47: 0.1062 | G47: 10.62 | H47: 轻载 | I47: 170.41 | J47: 否 | K47: 昌宁县漭水镇四角田社区 | L47: 200
A48: 46 | B48: 10kV水泥厂线423回路明德村大河坝台变 | C48: 10kV | D48: 0.1169 | E48: 11.69 | F48: 0.208 | G48: 20.8 | H48: 轻载 | I48: 79.48 | J48: 否 | K48: 昌宁县漭水镇明德村 | L48: 100
A49: 47 | B49: 10kV水泥厂线423回路明德村大洼子台变 | C49: 10kV | D49: 0.1385 | E49: 13.85 | F49: 0.2707 | G49: 27.07 | H49: 轻载 | I49: 96.92 | J49: 否 | K49: 昌宁县漭水镇明德村 | L49: 125
A50: 48 | B50: 10kV水泥厂线423回路明德村沟边台变 | C50: 10kV | D50: 0.2029 | E50: 20.29 | F50: 0.332 | G50: 33.2 | H50: 轻载 | I50: 71.74 | J50: 否 | K50: 昌宁县漭水镇明德村 | L50: 100
A51: 49 | B51: 10kV水泥厂线423回路四角田社区箐头台变 | C51: 10kV | D51: 0.0437 | E51: 4.37 | F51: 0.0894 | G51: 8.94 | H51: 轻载 | I51: 172.13 | J51: 否 | K51: 昌宁县漭水镇四角田社区 | L51: 200
A52: 50 | B52: 10kV水泥厂线423回路四角田社区石桥台变 | C52: 10kV | D52: 0.1123 | E52: 11.23 | F52: 0.2644 | G52: 26.44 | H52: 轻载 | I52: 127.83 | J52: 否 | K52: 昌宁县漭水镇四角田社区 | L52: 160
A53: 51 | B53: 10kV水泥厂线423回路四角田社区交瓜塘台变 | C53: 10kV | D53: 0.036 | E53: 3.6 | F53: 0.0749 | G53: 7.49 | H53: 轻载 | I53: 138.82 | J53: 否 | K53: 昌宁县漭水镇四角田社区 | L53: 160
A54: 52 | B54: 10kV水泥厂线423回路新城社区石头寨台变 | C54: 10kV | D54: 0.0399 | E54: 3.99 | F54: 0.0695 | G54: 6.95 | H54: 轻载 | I54: 172.82 | J54: 否 | K54: 昌宁县田园镇达丙社区 | L54: 200
A55: 53 | B55: 10kV水泥厂线423回路达仁村杞木林台变 | C55: 10kV | D55: 0.0269 | E55: 2.69 | F55: 0.0618 | G55: 6.18 | H55: 轻载 | I55: 109.47 | J55: 否 | K55: 昌宁县田园镇达仁村 | L55: 125
A56: 54 | B56: 10kV水泥厂线423回路达仁村石竹林台变 | C56: 10kV | D56: 0.0488 | E56: 4.88 | F56: 0.1556 | G56: 15.56 | H56: 轻载 | I56: 107.01 | J56: 否 | K56: 昌宁县田园镇达仁村 | L56: 125
A57: 55 | B57: 10kV水泥厂线423回路达仁村干塘台变 | C57: 10kV | D57: 0.0294 | E57: 2.94 | F57: 0.0811 | G57: 8.11 | H57: 轻载 | I57: 218.39 | J57: 否 | K57: 昌宁县田园镇达仁村 | L57: 250
A58: 56 | B58: 10kV水泥厂线423回路达仁村老学校台变 | C58: 10kV | D58: 0.018 | E58: 1.8 | F58: 0.0355 | G58: 3.55 | H58: 轻载 | I58: 110.48 | J58: 否 | K58: 昌宁县田园镇达仁村 | L58: 125
A59: 57 | B59: 10kV水泥厂线423回路达仁村大平掌台变 | C59: 10kV | D59: 0.0025 | E59: 0.72 | F59: 0.0089 | G59: 9.9 | H59: 轻载 | I59: 224.44 | J59: 否 | K59: 昌宁县田园镇达仁村 | L59: 250
A60: 58 | B60: 10kV水泥厂线423回路达仁村大浪地台变 | C60: 10kV | D60: 0.0658 | E60: 6.58 | F60: 0.1857 | G60: 18.57 | H60: 轻载 | I60: 25.22 | J60: 否 | K60: 昌宁县田园镇达仁村 | L60: 30
A61: 59 | B61: 10kV水泥厂线423回路达仁村坡脚台变 | C61: 10kV | D61: 0.0326 | E61: 3.26 | F61: 0.0707 | G61: 7.07 | H61: 轻载 | I61: 87.07 | J61: 否 | K61: 昌宁县田园镇达仁村 | L61: 100
A62: 60 | B62: 10kV水泥厂线423回路达仁村上寨台变 | C62: 10kV | D62: 0.1135 | E62: 11.35 | F62: 0.1696 | G62: 16.96 | H62: 轻载 | I62: 79.79 | J62: 否 | K62: 昌宁县田园镇达仁村 | L62: 100
A63: 61 | B63: 10kV水泥厂线423回路达仁村下寨台变 | C63: 10kV | D63: 0.108 | E63: 10.8 | F63: 0.2773 | G63: 27.73 | H63: 轻载 | I63: 64.22 | J63: 否 | K63: 昌宁县田园镇达仁村 | L63: 80
A64: 62 | B64: 10kV水泥厂线423回路达仁村甲山台变 | C64: 10kV | D64: 0.0682 | E64: 6.82 | F64: 0.1848 | G64: 18.48 | H64: 轻载 | I64: 67.09 | J64: 否 | K64: 昌宁县田园镇达仁村 | L64: 80
A65: 63 | B65: 10kV水泥厂线423回路达仁村兰家台变 | C65: 10kV | D65: 0.0318 | E65: 3.18 | F65: 0.0604 | G65: 6.04 | H65: 轻载 | I65: 69.71 | J65: 否 | K65: 昌宁县田园镇达仁村 | L65: 80
A66: 64 | B66: 10kV水泥厂线423回路达仁村磨刀河2#台变 | C66: 10kV | D66: 0.0439 | E66: 4.39 | F66: 0.0968 | G66: 9.68 | H66: 轻载 | I66: 43.02 | J66: 否 | K66: 昌宁县漭水镇明德村 | L66: 50
A67: 65 | B67: 10kV水泥厂线423回路达仁村长岭岗台变 | C67: 10kV | D67: 0.1656 | E67: 16.56 | F67: 0.3333 | G67: 33.33 | H67: 轻载 | I67: =(L67-L67*D67)*0.9 -> 150.19 | J67: 否 | K67: 昌宁县田园镇达仁村 | L67: 200
A68: 66 | B68: 10kV水泥厂线423回路达仁村磨刀河台变 | C68: 10kV | D68: 0.071 | E68: =D68*100 -> 7.1 | F68: 0.1428 | G68: =F68*100 -> 14.28 | H68: 轻载 | I68: 25.08 | J68: =IF(H68="过载","是","否") -> 否 | K68: 昌宁县漭水镇明德村 | L68: 30
A69: 67 | B69: 10kV水泥厂线423回路达仁村新厂河台变 | C69: 10kV | D69: 0.071 | E69: 7.1 | F69: 0.1619 | G69: 16.19 | H69: 轻载 | I69: 41.81 | J69: 否 | K69: 昌宁县田园镇达仁村 | L69: 50
A70: 68 | B70: 10kV水泥厂线423回路达仁村后箐台变 | C70: 10kV | D70: 0.057 | E70: 5.7 | F70: 0.1321 | G70: 13.21 | H70: 轻载 | I70: 67.90 | J70: 否 | K70: 昌宁县田园镇达仁村 | L70: 80
A71: 69 | B71: 10kV水泥厂线423回路达仁村金竹林台变 | C71: 10kV | D71: 0.0161 | E71: 1.61 | F71: 0.0452 | G71: 4.52 | H71: 轻载 | I71: 70.84 | J71: 否 | K71: 昌宁县田园镇达仁村 | L71: 80
A72: 70 | B72: 10kV水泥厂线423回路达仁村新侯台变 | C72: 10kV | D72: 0.1388 | E72: 13.88 | F72: 0.3461 | G72: 34.61 | H72: 轻载 | I72: 38.75 | J72: 否 | K72: 昌宁县田园镇达仁村 | L72: 50
A73: 71 | B73: 10kV水泥厂线423回路达仁村新德户台变 | C73: 10kV | D73: 0.0356 | E73: 3.56 | F73: 0.075 | G73: 7.5 | H73: 轻载 | I73: 69.44 | J73: 否 | K73: 昌宁县田园镇达仁村 | L73: 80
A74: 72 | B74: 10kV水泥厂线423回路达仁村小河边台变 | C74: 10kV | D74: 0.08 | E74: 8 | F74: 0.1805 | G74: 18.05 | H74: 轻载 | I74: 82.80 | J74: 否 | K74: 昌宁县田园镇达仁村 | L74: 100
A75: 73 | B75: 10kV水泥厂线423回路达仁村白泥塘台变 | C75: 10kV | D75: 0.0676 | E75: 6.76 | F75: 0.2877 | G75: 28.77 | H75: 轻载 | I75: 41.96 | J75: 否 | K75: 昌宁县田园镇达仁村 | L75: 50
A76: 74 | B76: 10kV水泥厂线423回路达仁村马鹿山台变 | C76: 10kV | D76: 0.035 | E76: 3.5 | F76: 0.1088 | G76: 10.88 | H76: 轻载 | I76: 43.43 | J76: 否 | K76: 昌宁县田园镇达仁村 | L76: 50
A77: 75 | B77: 10kV水泥厂线423回路达仁村樱桃树台变 | C77: 10kV | D77: 0.6734 | E77: 67.34 | F77: 1.5308 | G77: 153.08 | H77: 经济运行 | I77: 23.52 | J77: 否 | K77: 昌宁县田园镇达仁村 | L77: 80
A78: 76 | B78: 10kV水泥厂线423回路达仁村浪坝寨台变 | C78: 10kV | D78: 0.0993 | E78: 9.93 | F78: 0.264 | G78: 26.4 | H78: =_xlfn.IFS(D78<30%,"轻载",80%<D78<100%,"重载",D78>100%,"过载") -> 轻载 | I78: 24.32 | J78: 否 | K78: 昌宁县田园镇达仁村 | L78: 30
A79: 77 | B79: 10kV水泥厂线423回路达仁村回头山台变 | C79: 10kV | D79: 0.0895 | E79: 8.95 | F79: 0.2614 | G79: 26.14 | H79: 轻载 | I79: 24.58 | J79: 否 | K79: 昌宁县田园镇达仁村 | L79: 30
A80: 78 | B80: 10kV水泥厂线423回路四角田社区哨卡台变 | C80: 10kV | D80: 0.0357 | E80: 3.57 | F80: 0.0811 | G80: 8.11 | H80: 轻载 | I80: 216.97 | J80: 否 | K80: 昌宁县漭水镇四角田社区 | L80: 250
A81: 79 | B81: 10kV水泥厂线423回路四角田社区小龙塘2#台变 | C81: 10kV | D81: 0.0643 | E81: 6.43 | F81: 0.1133 | G81: 11.33 | H81: 轻载 | I81: 134.74 | J81: 否 | K81: 昌宁县漭水镇四角田社区 | L81: 160
A82: 80 | B82: 10kV水泥厂线423回路四角田社区风吹山台变 | C82: 10kV | D82: 0.0904 | E82: 9.04 | F82: 0.2204 | G82: 22.04 | H82: 轻载 | I82: 130.98 | J82: 否 | K82: 昌宁县漭水镇四角田社区 | L82: 160
A83: 81 | B83: 10kV水泥厂线423回路四角田社区二匹方台变 | C83: 10kV | D83: 0.0235 | E83: 2.35 | F83: 0.0657 | G83: 6.57 | H83: 轻载 | I83: 87.89 | J83: 否 | K83: 昌宁县漭水镇四角田社区 | L83: 100
A84: 82 | B84: 10kV水泥厂线423回路四角田社区土萝卜地台变 | C84: 10kV | D84: 0.0973 | E84: 9.73 | F84: 0.2918 | G84: 29.18 | H84: 轻载 | I84: 81.24 | J84: 否 | K84: 昌宁县漭水镇四角田社区 | L84: 100
A85: 83 | B85: 10kV水泥厂线423回路四角田社区杨家田台变 | C85: 10kV | D85: 0.041 | E85: 4.1 | F85: 0.1092 | G85: 10.92 | H85: 轻载 | I85: 138.10 | J85: 否 | K85: 昌宁县漭水镇四角田社区 | L85: 160
A86: 84 | B86: 10kV水泥厂线423回路四角田社区打桩田台变 | C86: 10kV | D86: 0.041 | E86: 4.1 | F86: 0.1392 | G86: 13.92 | H86: 轻载 | I86: 138.10 | J86: 否 | K86: 昌宁县漭水镇四角田社区 | L86: 160
A87: 85 | B87: 10kV水泥厂线423回路四角田社区大洼子台变 | C87: 10kV | D87: 0.0505 | E87: 5.05 | F87: 0.1132 | G87: 11.32 | H87: 轻载 | I87: 106.82 | J87: 否 | K87: 昌宁县漭水镇四角田社区 | L87: 125
A88: 86 | B88: 10kV水泥厂线423回路达仁村马鹿山2#台变 | C88: 10kV | D88: 0.1064 | E88: 10.64 | F88: 0.483 | G88: 48.3 | H88: 轻载 | I88: 100.53 | J88: 否 | K88: 昌宁县田园镇达仁村 | L88: 125
A89: 87 | B89: 10kV河西线424回路新城社区茶所台变 | C89: 10kV | D89: 0.0677 | E89: 6.77 | F89: 0.164 | G89: 16.4 | H89: 轻载 | I89: 167.81 | J89: 否 | K89: 昌宁县田园镇新城社区 | L89: 200
A90: 88 | B90: 10kV河西线424回路新城社区街子台变 | C90: 10kV | D90: 0.1651 | E90: 16.51 | F90: 0.3049 | G90: 30.49 | H90: 轻载 | I90: 236.69 | J90: 否 | K90: 昌宁县田园镇新城社区 | L90: 315
A91: 89 | B91: 10kV河西线424回路新城社区石桥台变 | C91: 10kV | D91: 0.1891 | E91: 18.91 | F91: 0.334 | G91: 33.4 | H91: 轻载 | I91: 182.45 | J91: 否 | K91: 昌宁县田园镇新城社区 | L91: 250
A92: 90 | B92: 10kV河西线424回路新城社区新路台变 | C92: 10kV | D92: 0.1015 | E92: 10.15 | F92: 0.2614 | G92: 26.14 | H92: 轻载 | I92: 129.38 | J92: 否 | K92: 昌宁县田园镇新城社区 | L92: 160
A93: 91 | B93: 10kV河西线424回路新城社区上寨台变 | C93: 10kV | D93: 0.1183 | E93: 11.83 | F93: 0.2655 | G93: 26.55 | H93: 轻载 | I93: 249.96 | J93: 否 | K93: 昌宁县田园镇新城社区 | L93: 315
A94: 92 | B94: 10kV河西线424回路新城社区坡头台变 | C94: 10kV | D94: 0.2592 | E94: 25.92 | F94: 0.564 | G94: 56.4 | H94: 轻载 | I94: 133.34 | J94: 否 | K94: 昌宁县田园镇新城社区 | L94: 200
A95: 93 | B95: 10kV河西线424回路新城社区河对门1#台变 | C95: 10kV | D95: 0.0675 | E95: 6.75 | F95: 0.1316 | G95: 13.16 | H95: 轻载 | I95: 134.28 | J95: 否 | K95: 昌宁县田园镇新城社区 | L95: 160
A96: 94 | B96: 10kV河西线424回路新城社区草场坝台变 | C96: 10kV | D96: 0.075 | E96: 7.5 | F96: 0.1792 | G96: 17.92 | H96: 轻载 | I96: 208.13 | J96: 否 | K96: 昌宁县田园镇新城社区 | L96: 250
A97: 95 | B97: 10kV河西线424回路新城社区白坟台变 | C97: 10kV | D97: 0.1036 | E97: 10.36 | F97: 0.2207 | G97: 22.07 | H97: 轻载 | I97: 161.35 | J97: 否 | K97: 昌宁县田园镇新城社区 | L97: 200
A98: 96 | B98: 10kV河西线424回路新城社区丫口寨台变 | C98: 10kV | D98: 0.0426 | E98: 4.26 | F98: 0.1229 | G98: 12.29 | H98: 轻载 | I98: 43.08 | J98: 否 | K98: 昌宁县田园镇新城社区 | L98: 50
A99: 97 | B99: 10kV河西线424回路翠华社区观渔坝台变 | C99: 10kV | D99: 0.0368 | E99: 3.68 | F99: 0.1156 | G99: 11.56 | H99: 轻载 | I99: 108.36 | J99: 否 | K99: 昌宁县漭水镇翠华社区 | L99: 125
A100: 98 | B100: 10kV河西线424回路新城社区河对门2#台变 | C100: 10kV | D100: 0.1166 | E100: 11.66 | F100: 0.2377 | G100: 23.77 | H100: 轻载 | I100: 127.21 | J100: 否 | K100: 昌宁县田园镇新城社区 | L100: 160
A101: 99 | B101: 10kV河西线424回路新城社区德老本1#台变 | C101: 10kV | D101: 0.105 | E101: 10.5 | F101: 0.1472 | G101: 14.72 | H101: 轻载 | I101: 201.38 | J101: 否 | K101: 昌宁县田园镇新城社区 | L101: 250
A102: 100 | B102: 10kV河西线424回路新城社区德老本2#台变 | C102: 10kV | D102: 0.1737498413 | E102: 17.37 | F102: 0.1737498413 | G102: 17.37 | H102: 轻载 | I102: 234.24 | J102: 否 | K102: 昌宁县田园镇新城社区 | L102: 315
A103: 101 | B103: 10kV河西线424回路新城社区德老本3#台变 | C103: 10kV | D103: 0.0807 | E103: 8.07 | F103: 0.1532 | G103: 15.32 | H103: 轻载 | I103: 206.84 | J103: 否 | K103: 昌宁县田园镇新城社区 | L103: 250
A104: 102 | B104: 10kV河西线424回路新城社区坡头2#台变 | C104: 10kV | D104: 0.0913 | E104: 9.13 | F104: 0.1736 | G104: 17.36 | H104: 轻载 | I104: 163.57 | J104: 否 | K104: 昌宁县田园镇新城社区 | L104: 200
A105: 103 | B105: 10kV明德线425回路达丙社区光达小区台变 | C105: 10kV | D105: 0.1359 | E105: 13.59 | F105: 0.2414 | G105: 24.14 | H105: 轻载 | I105: 155.54 | J105: 否 | K105: 昌宁县田园镇达丙社区 | L105: 200
A106: 104 | B106: 10kV二中线426回路达丙社区新园社区台变 | C106: 10kV | D106: 0.0313 | E106: 3.13 | F106: 0.0739 | G106: 7.39 | H106: 轻载 | I106: 274.63 | J106: 否 | K106: 昌宁县田园镇达丙社区 | L106: 315
A107: 105 | B107: 10kV龙泉线427回路九甲社区兴顺达2#台变 | C107: 10kV | D107: 0.0491 | E107: 4.91 | F107: 0.1515 | G107: 15.15 | H107: 轻载 | I107: 136.93 | J107: 否 | K107: 昌宁县田园镇九甲社区 | L107: 160
A108: 106 | B108: 10kV龙泉线427回路龙泉社区牛屎沟台变 | C108: 10kV | D108: 0.0832 | E108: 8.32 | F108: 0.1415 | G108: 14.15 | H108: 轻载 | I108: 259.91 | J108: 否 | K108: 昌宁县田园镇龙泉社区 | L108: 315
A109: 107 | B109: 10kV龙泉线427回路龙泉社区竹园台变 | C109: 10kV | D109: 0.1238 | E109: 12.38 | F109: 0.204 | G109: 20.4 | H109: 轻载 | I109: 248.40 | J109: 否 | K109: 昌宁县田园镇龙泉社区 | L109: 315
A110: 108 | B110: 10kV龙泉线427回路龙泉社区向阳寨台变 | C110: 10kV | D110: 0.0991 | E110: 9.91 | F110: 0.2179 | G110: 21.79 | H110: 轻载 | I110: 255.41 | J110: 否 | K110: 昌宁县田园镇龙泉社区 | L110: 315
A111: 109 | B111: 10kV龙泉线427回路龙泉社区龙上台变 | C111: 10kV | D111: 0.0121 | E111: 1.21 | F111: 0.0234 | G111: 2.34 | H111: 轻载 | I111: 280.07 | J111: 否 | K111: 昌宁县田园镇龙泉社区 | L111: 315
A112: 110 | B112: 10kV龙泉线427回路龙泉社区龙下台变 | C112: 10kV | D112: 0.1955 | E112: 19.55 | F112: 0.3573 | G112: 35.73 | H112: 轻载 | I112: 144.81 | J112: 否 | K112: 昌宁县田园镇龙泉社区 | L112: 200
A113: 111 | B113: 10kV龙泉线427回路龙泉社区石庄1#台变 | C113: 10kV | D113: 0.0924 | E113: 9.24 | F113: 0.2021 | G113: 20.21 | H113: 轻载 | I113: 163.37 | J113: 否 | K113: 昌宁县田园镇龙泉社区 | L113: 200
A114: 112 | B114: 10kV龙泉线427回路龙泉社区石庄2#台变 | C114: 10kV | D114: 0.2832 | E114: 28.32 | F114: 0.4943 | G114: 49.43 | H114: 轻载 | I114: 129.02 | J114: 否 | K114: 昌宁县田园镇龙泉社区 | L114: 200
A115: 113 | B115: 10kV龙泉线427回路龙泉社区沙沟台变 | C115: 10kV | D115: 0.0926 | E115: 9.26 | F115: 0.1858 | G115: 18.58 | H115: 轻载 | I115: 163.33 | J115: 否 | K115: 昌宁县田园镇龙泉社区 | L115: 200
A116: 114 | B116: 10kV龙泉线427回路龙泉社区簸箕寨台变 | C116: 10kV | D116: 0.0821 | E116: 8.21 | F116: 0.1376 | G116: 13.76 | H116: 轻载 | I116: 103.26 | J116: 否 | K116: 昌宁县田园镇龙泉社区 | L116: 125
A117: 115 | B117: 10kV龙泉线427回路九甲社区黄草坝台变 | C117: 10kV | D117: 0.0757 | E117: 7.57 | F117: 0.1411 | G117: 14.11 | H117: 轻载 | I117: 103.98 | J117: 否 | K117: 昌宁县田园镇九甲社区 | L117: 125
A118: 116 | B118: 10kV龙泉线427回路九甲社区六甲台变 | C118: 10kV | D118: 0.1428 | E118: 14.28 | F118: 0.3897 | G118: 38.97 | H118: 轻载 | I118: 123.44 | J118: 否 | K118: 昌宁县田园镇九甲社区 | L118: 160
A119: 117 | B119: 10kV龙泉线427回路龙泉社区上七甲1#台变 | C119: 10kV | D119: 0.1303 | E119: 13.03 | F119: 0.2847 | G119: 28.47 | H119: 轻载 | I119: 246.56 | J119: 否 | K119: 昌宁县田园镇龙泉社区 | L119: 315
A120: 118 | B120: 10kV龙泉线427回路九甲社区田坝心台变 | C120: 10kV | D120: 0.0516 | E120: 5.16 | F120: 0.1229 | G120: 12.29 | H120: 轻载 | I120: 136.57 | J120: 否 | K120: 昌宁县田园镇九甲社区 | L120: 160
A121: 119 | B121: 10kV龙泉线427回路龙泉社区下七甲台变 | C121: 10kV | D121: 0.0682 | E121: 6.82 | F121: 0.1182 | G121: 11.82 | H121: 轻载 | I121: 264.17 | J121: 否 | K121: 昌宁县田园镇龙泉社区 | L121: 315
A122: 120 | B122: 10kV龙泉线427回路九甲社区付家寨台变 | C122: 10kV | D122: 0.1852 | E122: 18.52 | F122: 0.3119 | G122: 31.19 | H122: 轻载 | I122: 117.33 | J122: 否 | K122: 昌宁县田园镇九甲社区 | L122: 160
A123: 121 | B123: 10kV龙泉线427回路九甲社区马场台变 | C123: 10kV | D123: 0.0868 | E123: 8.68 | F123: 0.1791 | G123: 17.91 | H123: 轻载 | I123: 131.50 | J123: 否 | K123: 昌宁县田园镇九甲社区 | L123: 160
A124: 122 | B124: 10kV龙泉线427回路九甲社区富乐台变 | C124: 10kV | D124: 0.0395 | E124: 3.95 | F124: 0.073 | G124: 7.3 | H124: 轻载 | I124: 272.30 | J124: 否 | K124: 昌宁县田园镇九甲社区 | L124: 315
A125: 123 | B125: 10kV龙泉线427回路九甲社区八甲台变 | C125: 10kV | D125: 0.2302 | E125: 23.02 | F125: 0.5546 | G125: 55.46 | H125: 轻载 | I125: 55.43 | J125: 否 | K125: 昌宁县田园镇九甲社区 | L125: 80
A126: 124 | B126: 10kV龙泉线427回路九甲社区八甲鱼塘台变 | C126: 10kV | D126: 0.1444 | E126: 14.44 | F126: 0.2467 | G126: 24.67 | H126: 轻载 | I126: 96.26 | J126: 否 | K126: 昌宁县田园镇九甲社区 | L126: 125
A127: 125 | B127: 10kV龙泉线427回路九甲社区马道子变 | C127: 10kV | D127: 0.2081 | E127: 20.81 | F127: 0.451 | G127: 45.1 | H127: 轻载 | I127: 114.03 | J127: 否 | K127: 昌宁县田园镇九甲社区 | L127: 160
A128: 126 | B128: 10kV龙泉线427回路九甲社区槐树台变 | C128: 10kV | D128: 0.2575 | E128: 25.75 | F128: 0.4666 | G128: 46.66 | H128: 轻载 | I128: 66.83 | J128: 否 | K128: 昌宁县田园镇九甲社区 | L128: 100
A129: 127 | B129: 10kV龙泉线427回路九甲社区白泥塘台变 | C129: 10kV | D129: 0.0492 | E129: 4.92 | F129: 0.1005 | G129: 10.05 | H129: 轻载 | I129: 68.46 | J129: 否 | K129: 昌宁县田园镇九甲社区 | L129: 80
A130: 128 | B130: 10kV龙泉线427回路九甲社区碗厂台变 | C130: 10kV | D130: 0.2096 | E130: 20.96 | F130: 0.4641 | G130: 46.41 | H130: 轻载 | I130: 56.91 | J130: 否 | K130: 昌宁县田园镇九甲社区 | L130: 80
A131: 129 | B131: 10kV龙泉线427回路九甲社区金山台变 | C131: 10kV | D131: 0.0286 | E131: 2.86 | F131: 0.0678 | G131: 6.78 | H131: 轻载 | I131: =(L131-L131*D131)*0.9 -> 87.43 | J131: 否 | K131: 昌宁县田园镇九甲社区 | L131: 100
A132: 130 | B132: 10kV龙泉线427回路九甲社区中心村1#台变 | C132: 10kV | D132: 0.1477 | E132: =D132*100 -> 14.77 | F132: 0.295 | G132: =F132*100 -> 29.5 | H132: 轻载 | I132: 241.63 | J132: =IF(H132="过载","是","否") -> 否 | K132: 昌宁县田园镇九甲社区 | L132: 315
A133: 131 | B133: 10kV龙泉线427回路九甲社区黑山箐1#台变 | C133: 10kV | D133: 0.0207 | E133: 2.07 | F133: 0.0514 | G133: 5.14 | H133: 轻载 | I133: 141.02 | J133: 否 | K133: 昌宁县田园镇九甲社区 | L133: 160
A134: 132 | B134: 10kV龙泉线427回路九甲社区富乐2#台变 | C134: 10kV | D134: 0.0794988 | E134: 7.95 | F134: 0.0354 | G134: 3.54 | H134: 轻载 | I134: 165.69 | J134: 否 | K134: 昌宁县田园镇九甲社区 | L134: 200
A135: 133 | B135: 10kV龙泉线427回路九甲社区黑山箐2#台变 | C135: 10kV | D135: 0.074 | E135: 7.4 | F135: 0.1909 | G135: 19.09 | H135: 轻载 | I135: 66.67 | J135: 否 | K135: 昌宁县田园镇九甲社区 | L135: 80
A136: 134 | B136: 10kV龙泉线427回路九甲社区兴顺达1#台变 | C136: 10kV | D136: 0.0753 | E136: 7.53 | F136: 0.1427 | G136: 14.27 | H136: 轻载 | I136: 104.03 | J136: 否 | K136: 昌宁县田园镇九甲社区 | L136: 125
A137: 135 | B137: 10kV龙泉线427回路九甲社区李赶香台变 | C137: 10kV | D137: 0.024 | E137: 2.4 | F137: 0.064 | G137: 6.4 | H137: 轻载 | I137: 87.84 | J137: 否 | K137: 昌宁县田园镇九甲社区 | L137: 100
A138: 136 | B138: 10kV龙泉线427回路九甲社区扁尾台变 | C138: 10kV | D138: 0.043 | E138: 4.3 | F138: 0.0753 | G138: 7.53 | H138: 轻载 | I138: 86.13 | J138: 否 | K138: 昌宁县田园镇九甲社区 | L138: 100
A139: 137 | B139: 10kV锡矿线428回路湾岗村蒿坝地台变 | C139: 10kV | D139: 0.0908 | E139: 9.08 | F139: 0.2741 | G139: 27.41 | H139: 轻载 | I139: 81.83 | J139: 否 | K139: 昌宁县大田坝镇湾岗村 | L139: 100
A140: 138 | B140: 10kV锡矿线428回路湾岗村羊圈山台变 | C140: 10kV | D140: 0.1219 | E140: 12.19 | F140: 0.2662 | G140: 26.62 | H140: 轻载 | I140: 79.03 | J140: 否 | K140: 昌宁县大田坝镇湾岗村 | L140: 100
A141: 139 | B141: 10kV锡矿线428回路湾岗村上寨台变 | C141: 10kV | D141: 0.0641 | E141: 6.41 | F141: 0.1179 | G141: 11.79 | H141: 轻载 | I141: 168.46 | J141: 否 | K141: 昌宁县大田坝镇湾岗村 | L141: 200
A142: 140 | B142: 10kV锡矿线428回路湾岗村上寨烤房台变 | C142: 10kV | D142: 0.0857 | E142: 8.57 | F142: 0.351 | G142: 35.1 | H142: =_xlfn.IFS(D142<30%,"轻载",80%<D142<100%,"重载",D142>100%,"过载") -> 轻载 | I142: 41.14 | J142: 否 | K142: 昌宁县大田坝镇湾岗村 | L142: 50
A143: 141 | B143: 10kV锡矿线428回路湾岗村大寨台变 | C143: 10kV | D143: 0.121 | E143: 12.1 | F143: 0.269 | G143: 26.9 | H143: 轻载 | I143: 79.11 | J143: 否 | K143: 昌宁县大田坝镇湾岗村 | L143: 100
A144: 142 | B144: 10kV锡矿线428回路湾岗村大平地台变 | C144: 10kV | D144: 0.0454 | E144: 4.54 | F144: 0.0857 | G144: 8.57 | H144: 轻载 | I144: 85.91 | J144: 否 | K144: 昌宁县大田坝镇湾岗村 | L144: 100
A145: 143 | B145: 10kV锡矿线428回路湾岗村大苗坡台变 | C145: 10kV | D145: 0.0411 | E145: 4.11 | F145: 0.1677 | G145: 16.77 | H145: 轻载 | I145: 172.60 | J145: 否 | K145: 昌宁县大田坝镇湾岗村 | L145: 200
A146: 144 | B146: 10kV锡矿线428回路湾岗村李子树台变 | C146: 10kV | D146: 0.0537 | E146: 5.37 | F146: 0.0955 | G146: 9.55 | H146: 轻载 | I146: 212.92 | J146: 否 | K146: 昌宁县大田坝镇湾岗村 | L146: 250
A147: 145 | B147: 10kV锡矿线428回路湾岗村中学台变 | C147: 10kV | D147: 0.1273 | E147: 12.73 | F147: 0.3215 | G147: 32.15 | H147: 轻载 | I147: 125.67 | J147: 否 | K147: 昌宁县大田坝镇湾岗村 | L147: 160
A148: 146 | B148: 10kV锡矿线428回路湾岗村湾岗街子台变 | C148: 10kV | D148: 0.1319 | E148: 13.19 | F148: 0.2205 | G148: 22.05 | H148: 轻载 | I148: 156.26 | J148: 否 | K148: 昌宁县大田坝镇湾岗村 | L148: 200
A149: 147 | B149: 10kV锡矿线428回路湾岗村花家寨台变 | C149: 10kV | D149: 0.1123 | E149: 11.23 | F149: 0.3057 | G149: 30.57 | H149: 轻载 | I149: 59.92 | J149: 否 | K149: 昌宁县大田坝镇湾岗村 | L149: 75
A150: 148 | B150: 10kV锡矿线428回路湾岗村和睦山台变 | C150: 10kV | D150: 0.1107 | E150: 11.07 | F150: 0.1775 | G150: 17.75 | H150: 轻载 | I150: 80.04 | J150: 否 | K150: 昌宁县大田坝镇湾岗村 | L150: 100
A151: 149 | B151: 10kV锡矿线428回路湾岗村黑浪坝台变 | C151: 10kV | D151: 0.0422 | E151: 4.22 | F151: 0.0954 | G151: 9.54 | H151: 轻载 | I151: 86.20 | J151: 否 | K151: 昌宁县大田坝镇湾岗村 | L151: 100
A152: 150 | B152: 10kV锡矿线428回路湾岗村篱笆栏台变 | C152: 10kV | D152: 0.217 | E152: 21.7 | F152: 0.562 | G152: 56.2 | H152: 轻载 | I152: 70.47 | J152: 否 | K152: 昌宁县大田坝镇湾岗村 | L152: 100
A153: 151 | B153: 10kV锡矿线428回路新寨村三沟水1#台变 | C153: 10kV | D153: 0.0336 | E153: 3.36 | F153: 0.0946 | G153: 9.46 | H153: 轻载 | I153: 26.09 | J153: 否 | K153: 昌宁县大田坝镇新寨村 | L153: 30
A154: 152 | B154: 10kV锡矿线428回路新寨村三沟水2#台变 | C154: 10kV | D154: 0.0683 | E154: 6.83 | F154: 0.1429 | G154: 14.29 | H154: 轻载 | I154: 83.85 | J154: 否 | K154: 昌宁县大田坝镇新寨村 | L154: 100
A155: 153 | B155: 10kV锡矿线428回路湾岗村中山2#台变 | C155: 10kV | D155: 0.1632 | E155: 16.32 | F155: 0.2124 | G155: 21.24 | H155: 轻载 | I155: 188.28 | J155: 否 | K155: 昌宁县大田坝镇湾岗村 | L155: 250
A156: 154 | B156: 10kV锡矿线428回路湾岗村茶山坡台变 | C156: 10kV | D156: 0.0492 | E156: 4.92 | F156: 0.1138 | G156: 11.38 | H156: 轻载 | I156: 85.57 | J156: 否 | K156: 昌宁县大田坝镇湾岗村 | L156: 100
A157: 155 | B157: 10kV锡矿线428回路湾岗村大地坡台变 | C157: 10kV | D157: 0.0557 | E157: 5.57 | F157: 0.1538 | G157: 15.38 | H157: 轻载 | I157: 169.97 | J157: 否 | K157: 昌宁县大田坝镇湾岗村 | L157: 200
A158: 156 | B158: 10kV锡矿线428回路湾岗村呜吐塘台变 | C158: 10kV | D158: 0.0692 | E158: 6.92 | F158: 0.1514 | G158: 15.14 | H158: 轻载 | I158: 134.04 | J158: 否 | K158: 昌宁县大田坝镇湾岗村 | L158: 160
A159: 157 | B159: 10kV锡矿线428回路达丙社区三家村台变 | C159: 10kV | D159: 0.032 | E159: 3.2 | F159: 0.1473 | G159: 14.73 | H159: 轻载 | I159: 43.56 | J159: 否 | K159: 昌宁县田园镇达丙社区 | L159: 50
A160: 158 | B160: 10kV锡矿线428回路达丙社区高坎子工业园区台变 | C160: 10kV | D160: 0.0272 | E160: 2.72 | F160: 0.0894 | G160: 8.94 | H160: 轻载 | I160: 350.21 | J160: 否 | K160: 昌宁县田园镇达丙社区 | L160: 400
A161: 159 | B161: 10kV锡矿线428回路新城社区瓦谷箐台变 | C161: 10kV | D161: 0.039 | E161: 3.9 | F161: 0.0644 | G161: 6.44 | H161: 轻载 | I161: 138.38 | J161: 否 | K161: 昌宁县田园镇新城社区 | L161: 160
A162: 160 | B162: 10kV锡矿线428回路新城社区大麦地台变 | C162: 10kV | D162: 0.0525 | E162: 5.25 | F162: 0.1505 | G162: 15.05 | H162: 轻载 | I162: 42.64 | J162: 否 | K162: 昌宁县田园镇新城社区 | L162: 50
A163: 161 | B163: 10kV锡矿线428回路湾岗村大平坦安置点台变 | C163: 10kV | D163: 0.0969 | E163: 9.69 | F163: 0.1938 | G163: 19.38 | H163: 轻载 | I163: 162.56 | J163: 否 | K163: 昌宁县大田坝镇湾岗村 | L163: 200
A164: 162 | B164: 10kV锡矿线428回路湾岗村吹打洼安置点台变 | C164: 10kV | D164: 0.0359 | E164: 3.59 | F164: 0.0879 | G164: 8.79 | H164: 轻载 | I164: 173.54 | J164: 否 | K164: 昌宁县大田坝镇湾岗村 | L164: 200
A165: 163 | B165: 10kV锡矿线428回路湾岗村黄草坝台变 | C165: 10kV | D165: 0.135 | E165: 13.5 | F165: 0.234 | G165: 23.4 | H165: 轻载 | I165: 97.31 | J165: 否 | K165: 昌宁县大田坝镇湾岗村 | L165: 125
A166: 164 | B166: 10kV锡矿线428回路湾岗村麻栗林台变 | C166: 10kV | D166: 0.0535 | E166: 5.35 | F166: 0.1079 | G166: 10.79 | H166: 轻载 | I166: 212.96 | J166: 否 | K166: 昌宁县大田坝镇湾岗村 | L166: 250
A167: 165 | B167: 中国铁塔股份公司保山市分公司关口 | C167: 10kV | D167: 0.0571 | E167: 5.71 | F167: 0.0956 | G167: 9.56 | H167: 轻载 | I167: 25.46 | J167: 否 | K167: 昌宁县大田坝镇湾岗村 | L167: 30
A168: 166 | B168: 10kV锡矿线428回路湾岗村丫口台变 | C168: 10kV | D168: 0.0852 | E168: 8.52 | F168: 0.196 | G168: 19.6 | H168: 轻载 | I168: 82.33 | J168: 否 | K168: 昌宁县大田坝镇湾岗村 | L168: 100
A169: 167 | B169: 10kV锡矿线428回路湾岗村呜吐塘2#台变 | C169: 10kV | D169: 0.084 | E169: 8.4 | F169: 0.1663 | G169: 16.63 | H169: 轻载 | I169: 131.90 | J169: 否 | K169: 昌宁县大田坝镇湾岗村 | L169: 160
A170: 168 | B170: 10kV锡矿线428回路湾岗村中山1#台变 | C170: 10kV | D170: 0.0371 | E170: 3.71 | F170: 0.1292 | G170: 12.92 | H170: 轻载 | I170: 138.66 | J170: 否 | K170: 昌宁县大田坝镇湾岗村 | L170: 160
A171: 169 | B171: 10kV锡矿线428回路湾岗村竹麻林台变 | C171: 10kV | D171: 0.041 | E171: 4.1 | F171: 0.08 | G171: 8 | H171: 轻载 | I171: 172.62 | J171: 否 | K171: 昌宁县大田坝镇湾岗村 | L171: 200
A172: 170 | B172: 10kV右文线018回路右文社区营盘山1#台变 | C172: 10kV | D172: 0.0157 | E172: 1.57 | F172: 0.0366 | G172: 3.66 | H172: 轻载 | I172: 141.74 | J172: 否 | K172: 昌宁县田园镇右文社区 | L172: 160
A173: 171 | B173: 10kV右文线018回路右文社区营盘山2#台变 | C173: 10kV | D173: 0.0113 | E173: 1.13 | F173: 0.0337 | G173: 3.37 | H173: 轻载 | I173: 111.23 | J173: 否 | K173: 昌宁县田园镇右文社区 | L173: 125
A174: 172 | B174: 10kV右文线018回路右文社区大寨台变 | C174: 10kV | D174: 0.0157 | E174: 1.57 | F174: 0.0201 | G174: 2.01 | H174: 轻载 | I174: 177.17 | J174: 否 | K174: 昌宁县田园镇右文社区 | L174: 200
A175: 173 | B175: 10kV右文线018回路右文社区大理寨1#台变 | C175: 10kV | D175: 0.3694 | E175: 36.94 | F175: 0.7377 | G175: 73.77 | H175: 经济运行 | I175: 45.40 | J175: 否 | K175: 昌宁县田园镇右文社区 | L175: 80
A176: 174 | B176: 10kV右文线018回路右文社区上三甲台变 | C176: 10kV | D176: 0.0487 | E176: 4.87 | F176: 0.1784 | G176: 17.84 | H176: =_xlfn.IFS(D176<30%,"轻载",80%<D176<100%,"重载",D176>100%,"过载") -> 轻载 | I176: 214.04 | J176: 否 | K176: 昌宁县田园镇右文社区 | L176: 250
A177: 175 | B177: 10kV右文线018回路右文社区浪坝寨台变 | C177: 10kV | D177: 0.1896 | E177: 18.96 | F177: 0.4962 | G177: 49.62 | H177: 轻载 | I177: 229.75 | J177: 否 | K177: 昌宁县田园镇右文社区 | L177: 315
A178: 176 | B178: 10kV右文线018回路右文社区丫口寨1#台变 | C178: 10kV | D178: 0.0561168 | E178: 5.61 | F178: 0.2898 | G178: 28.98 | H178: 轻载 | I178: 169.90 | J178: 否 | K178: 昌宁县田园镇右文社区 | L178: 200
A179: 177 | B179: 10kV右文线018回路右文社区丫口寨2#台变 | C179: 10kV | D179: 0.0786 | E179: 7.86 | F179: 0.1754 | G179: 17.54 | H179: 轻载 | I179: 82.93 | J179: 否 | K179: 昌宁县田园镇右文社区 | L179: 100
A180: 178 | B180: 10kV右文线018回路右文社区花石头1#台变 | C180: 10kV | D180: 0.022 | E180: 2.2 | F180: 0.0543 | G180: 5.43 | H180: 轻载 | I180: 176.04 | J180: 否 | K180: 昌宁县田园镇右文社区 | L180: 200
A181: 179 | B181: 10kV右文线018回路右文社区花石头2#台变 | C181: 10kV | D181: 0.0354 | E181: 3.54 | F181: 0.0763 | G181: 7.63 | H181: 轻载 | I181: 69.45 | J181: 否 | K181: 昌宁县田园镇右文社区 | L181: 80
A182: 180 | B182: 10kV右文线018回路右文社区中三甲台变 | C182: 10kV | D182: 0.1087 | E182: 10.87 | F182: 0.2514 | G182: 25.14 | H182: 轻载 | I182: 252.68 | J182: 否 | K182: 昌宁县田园镇右文社区 | L182: 315
A183: 181 | B183: 10kV右文线018回路右文社区下三甲台变 | C183: 10kV | D183: 0.0551 | E183: 5.51 | F183: 0.1117 | G183: 11.17 | H183: 轻载 | I183: 267.88 | J183: 否 | K183: 昌宁县田园镇右文社区 | L183: 315
A184: 182 | B184: 10kV右文线018回路右文社区碧云寺台变 | C184: 10kV | D184: 0.0347 | E184: 3.47 | F184: 0.0846 | G184: 8.46 | H184: 轻载 | I184: 139.00 | J184: 否 | K184: 昌宁县田园镇右文社区 | L184: 160
A185: 183 | B185: 10kV右文线018回路右文社区大理寨2#台变 | C185: 10kV | D185: 0.0309 | E185: 3.09 | F185: 0.0906 | G185: 9.06 | H185: 轻载 | I185: 274.74 | J185: 否 | K185: 昌宁县田园镇右文社区 | L185: 315
A186: 184 | B186: 10kV右文线018回路右文社区城南安置小区台变 | C186: 10kV | D186: 0.0169 | E186: 1.69 | F186: 0.0291 | G186: 2.91 | H186: 轻载 | I186: 557.42 | J186: 否 | K186: 昌宁县田园镇右文社区 | L186: 630
A187: 185 | B187: 10kV南小区线026回路关庙社区南小区1#台变 | C187: 10kV | D187: 0.1324 | E187: 13.24 | F187: 0.2187 | G187: 21.87 | H187: 轻载 | I187: 245.96 | J187: 否 | K187: 昌宁县田园镇关庙社区 | L187: 315
A188: 186 | B188: 10kV南小区线026回路关庙社区关庙中寨台变 | C188: 10kV | D188: 0.0536 | E188: 5.36 | F188: 0.0893 | G188: 8.93 | H188: 轻载 | I188: 340.70 | J188: 否 | K188: 昌宁县田园镇关庙社区 | L188: 400
A189: 187 | B189: 10kV南小区线026回路关庙社区南小区2#台变 | C189: 10kV | D189: 0.0598 | E189: 5.98 | F189: 0.1296 | G189: 12.96 | H189: 轻载 | I189: 266.55 | J189: 否 | K189: 昌宁县田园镇关庙社区 | L189: 315
A190: 188 | B190: 10kV南小区线026回路关庙社区南小区3#台变 | C190: 10kV | D190: 0.1098 | E190: 10.98 | F190: 0.1866 | G190: 18.66 | H190: 轻载 | I190: 252.37 | J190: 否 | K190: 昌宁县田园镇关庙社区 | L190: 315
A191: 189 | B191: 10kV南小区线026回路关庙社区和睦村1#台变 | C191: 10kV | D191: 0.0616 | E191: 6.16 | F191: 0.1198 | G191: 11.98 | H191: 轻载 | I191: 168.91 | J191: 否 | K191: 昌宁县田园镇关庙社区 | L191: 200
A192: 190 | B192: 10kV南小区线026回路关庙社区和睦村3#台变 | C192: 10kV | D192: 0.0632 | E192: 6.32 | F192: 0.1233 | G192: 12.33 | H192: 轻载 | I192: 265.58 | J192: 否 | K192: 昌宁县田园镇关庙社区 | L192: 315
A193: 191 | B193: 10kV南小区线026回路关庙社区和睦村2#台变 | C193: 10kV | D193: 0.1344 | E193: 13.44 | F193: 0.2854 | G193: 28.54 | H193: 轻载 | I193: 245.40 | J193: 否 | K193: 昌宁县田园镇关庙社区 | L193: 315
A194: 192 | B194: 10kV南小区线026回路关庙社区榕华园台变 | C194: 10kV | D194: 0.0082 | E194: 1.9 | F194: 0.0151 | G194: 5.58 | H194: 轻载 | I194: 714.10 | J194: 否 | K194: 昌宁县田园镇关庙社区 | L194: 800
A195: 193 | B195: 10kV南小区线026回路宝丰社区宝丰路3#台变 | C195: 10kV | D195: 0.0918 | E195: 9.18 | F195: 0.1914 | G195: 19.14 | H195: 轻载 | I195: =(L195-L195*D195)*0.9 -> 163.48 | J195: 否 | K195: 昌宁县田园镇宝丰社区 | L195: 200
A196: 194 | B196: 10kV兴宁街北线024回路宝丰社区开元公司1#台变 | C196: 10kV | D196: 0.0461 | E196: =D196*100 -> 4.61 | F196: 0.0932 | G196: =F196*100 -> 9.32 | H196: 轻载 | I196: 171.70 | J196: =IF(H196="过载","是","否") -> 否 | K196: 昌宁县田园镇宝丰社区 | L196: 200
A197: 195 | B197: 10kV兴宁街北线024回路宝丰社区开元公司2#台变 | C197: 10kV | D197: 0.0499 | E197: 4.99 | F197: 0.0922 | G197: 9.22 | H197: 轻载 | I197: 269.35 | J197: 否 | K197: 昌宁县田园镇宝丰社区 | L197: 315
A198: 196 | B198: 10kV兴宁街北线024回路关庙社区兴宁街1#台变 | C198: 10kV | D198: 0.1689 | E198: 16.89 | F198: 0.2685 | G198: 26.85 | H198: 轻载 | I198: 149.60 | J198: 否 | K198: 昌宁县田园镇关庙社区 | L198: 200
A199: 197 | B199: 10kV兴宁街北线024回路宝丰社区商贸城台变 | C199: 10kV | D199: 0.0819 | E199: 8.19 | F199: 0.1381 | G199: 13.81 | H199: 轻载 | I199: 520.56 | J199: 否 | K199: 昌宁县田园镇宝丰社区 | L199: 630
A200: 198 | B200: 10kV兴宁街北线024回路关庙社区兴宁街2#台变 | C200: 10kV | D200: 0.0841 | E200: 8.41 | F200: 0.1491 | G200: 14.91 | H200: 轻载 | I200: 259.66 | J200: 否 | K200: 昌宁县田园镇关庙社区 | L200: 315
... 1833 more rows
